fUST/lending_fUST_20250513
["ID","MTS","AMOUNT","RATE_DAILY","PERIOD"]
[360879129,1747095062457,-400.0,0.00019452,2]
[360879130,1747095062467,-209.82205948,0.00019452,2]
[360879131,1747095062476,-1039.23,0.00019452,2]
[360879132,1747095062485,-422.71192609,0.00019452,2]
[360879133,1747095062495,-336.73023968,0.00019452,2]
[360879134,1747095062504,-759.46,0.00019452,2]
[360879135,1747095062513,-400.0,0.00019452,2]
[360879136,1747095062523,-495.98,0.00019452,2]
[360879137,1747095062532,-1421.12,0.00019452,2]
[360879138,1747095062542,-484.89,0.00019452,2]
[360879139,1747095062551,-1436.22,0.00019452,2]
[360879140,1747095062560,-400.0,0.00019452,2]
[360879141,1747095062569,-400.0,0.00019452,2]
[360879142,1747095062579,-400.0,0.00019452,2]
[360879143,1747095062588,-480.05,0.00019452,2]
[360879144,1747095062597,-463.03,0.00019452,2]
[360879145,1747095062607,-253.692,0.00019452,2]
[360879146,1747095062618,-253.692,0.00019452,2]
[360879147,1747095062627,-253.692,0.00019452,2]
[360879148,1747095062637,-5106.33,0.00019452,2]
[360879149,1747095062647,-253.692,0.00019452,2]
[360879150,1747095062657,-400.0,0.00019452,2]
[360879151,1747095062667,-400.0,0.00019452,2]
[360879152,1747095062676,-688.72,0.00019452,2]
[360879153,1747095062685,-636.69,0.00019452,2]
[360879154,1747095062695,-870.11,0.00019452,2]
[360879155,1747095062704,-400.0,0.00019452,2]
[360879156,1747095062714,-400.0,0.00019452,2]
[360879157,1747095062723,-400.0,0.00019452,2]
[360879158,1747095062733,-400.0,0.00019452,2]
[360879159,1747095062742,-253.692,0.00019452,2]
[360879160,1747095062751,-400.0,0.00019452,2]
[360879161,1747095062760,-253.692,0.00019452,2]
[360879162,1747095062770,-400.0,0.00019452,2]
[360879163,1747095062782,-253.692,0.00019452,2]
[360879164,1747095062791,-253.692,0.00019452,2]
[360879165,1747095062801,-400.0,0.00019452,2]
[360879166,1747095062810,-672.83,0.00019452,2]
[360879167,1747095062819,-1764.38,0.00019452,2]
[360879168,1747095062828,-566.99,0.00019452,2]
[360879169,1747095062838,-400.0,0.00019452,2]
[360879170,1747095062847,-400.0,0.00019452,2]
[360879171,1747095062857,-781.91,0.00019452,2]
[360879172,1747095062868,-400.0,0.00019452,2]
[360879173,1747095062877,-400.0,0.00019452,2]
[360879174,1747095062887,-400.0,0.00019452,2]
[360879175,1747095062896,-400.0,0.00019452,2]
[360879176,1747095062905,-400.0,0.00019452,2]
[360879177,1747095062915,-268.1829911,0.00019452,2]
[360879178,1747095062924,-1535.95,0.00019452,2]
[360879179,1747095062933,-520.66,0.00019452,2]
[360879180,1747095062943,-1248.23,0.00019452,2]
[360879181,1747095062952,-400.0,0.00019452,2]
[360879182,1747095062961,-400.0,0.00019452,2]
[360879183,1747095062971,-590.46,0.00019452,2]
[360879184,1747095062980,-400.0,0.00019452,2]
[360879185,1747095062989,-173.227874,0.00019452,2]
[360879186,1747095062998,-173.227874,0.00019452,2]
[360879187,1747095063007,-173.227874,0.00019452,2]
[360879188,1747095063016,-173.227874,0.00019452,2]
[360879189,1747095063026,-531.51,0.00019452,2]
[360879190,1747095063036,-400.0,0.00019452,2]
[360879191,1747095063046,-549.21104112,0.00019452,2]
[360879192,1747095063056,-400.0,0.00019452,2]
[360879193,1747095063065,-4146.55,0.00019452,2]
[360879194,1747095063075,-332.79285004,0.00019452,2]
[360879195,1747095063084,-1196.75,0.00019452,2]
[360879196,1747095063094,-400.0,0.00019452,2]
[360879197,1747095063103,-173.227874,0.00019452,2]
[360879198,1747095063115,-173.227874,0.00019452,2]
[360879199,1747095063124,-400.0,0.00019452,2]
[360879200,1747095063134,-173.227874,0.00019452,2]
[360879201,1747095063144,-173.227874,0.00019452,2]
[360879202,1747095063153,-400.0,0.00019452,2]
[360879203,1747095063164,-400.0,0.00019452,2]
[360879204,1747095063175,-1146.44,0.00019452,2]
[360879205,1747095063184,-2720.14,0.00019452,2]
[360879206,1747095063194,-400.0,0.00019452,2]
[360879207,1747095063203,-4441.23,0.00019452,2]
[360879208,1747095063213,-781.3,0.00019452,2]
[360879209,1747095063395,-400.0,0.00019452,2]
[360879210,1747095063405,-777.94,0.00019452,2]
[360879211,1747095063415,-400.0,0.00019452,2]
[360879212,1747095063426,-400.0,0.00019452,2]
[360879213,1747095063436,-1552.19,0.00019452,2]
[360879214,1747095063446,-400.0,0.00019452,2]
[360879215,1747095063456,-1319.21,0.00019452,2]
[360879216,1747095063467,-400.0,0.00019452,2]
[360879217,1747095063477,-783.16,0.00019452,2]
[360879218,1747095063487,-1311.31,0.00019452,2]
[360879219,1747095063497,-574.174314,0.00019452,2]
[360879220,1747095063507,-574.174314,0.00019452,2]
[360879221,1747095063517,-1211.94,0.00019452,2]
[360879222,1747095063527,-574.174314,0.00019452,2]
[360879223,1747095063538,-2470.14,0.00019452,2]
[360879224,1747095063548,-400.0,0.00019452,2]
[360879225,1747095063558,-574.174314,0.00019452,2]
[360879226,1747095063569,-450.21,0.00019452,2]
[360879227,1747095063579,-3573.67,0.00019452,2]
[360879228,1747095063590,-564.25,0.00019452,2]
[360879229,1747095063600,-574.174314,0.00019452,2]
[360879230,1747095063610,-3147.4,0.00019452,2]
[360879231,1747095063622,-574.174314,0.00019452,2]
[360879232,1747095063632,-699.83,0.00019452,2]
[360879233,1747095063641,-574.174314,0.00019452,2]
[360879234,1747095063651,-574.174314,0.00019452,2]
[360879235,1747095063661,-400.0,0.00019452,2]
[360879236,1747095063671,-1422.47,0.00019452,2]
[360879237,1747095063680,-1954.8,0.00019452,2]
[360879238,1747095063695,-787.51,0.00019452,2]
[360879239,1747095063705,-181.79813,0.00019452,2]
[360879240,1747095063715,-181.79813,0.00019452,2]
[360879241,1747095063725,-788.3,0.00019452,2]
[360879242,1747095063734,-181.79813,0.00019452,2]
[360879243,1747095063744,-400.0,0.00019452,2]
[360879244,1747095063753,-400.0,0.00019452,2]
[360879245,1747095063764,-181.79813,0.00019452,2]
[360879246,1747095063774,-400.0,0.00019452,2]
[360879247,1747095063783,-592.07,0.00019452,2]
[360879248,1747095063792,-2023.85,0.00019452,2]
[360879249,1747095063802,-3556.51,0.00019452,2]
[360879250,1747095063812,-9923.74,0.00019452,2]
[360879251,1747095063825,-400.0,0.00019452,2]
[360879252,1747095063835,-400.0,0.00019452,2]
[360879253,1747095063844,-181.79813,0.00019452,2]
[360879254,1747095063854,-181.79813,0.00019452,2]
[360879255,1747095063867,-4159.99,0.00019452,2]
[360879256,1747095063877,-400.0,0.00019452,2]
[360879257,1747095063887,-26015.36,0.00019452,2]
[360879258,1747095063896,-181.79813,0.00019452,2]
[360879259,1747095063907,-400.0,0.00019452,2]
[360879260,1747095064124,-181.79813,0.00019452,2]
[360879261,1747095064134,-400.0,0.00019452,2]
[360879262,1747095064144,-400.0,0.00019452,2]
[360879263,1747095064153,-400.0,0.00019452,2]
[360879264,1747095064163,-822.84,0.00019452,2]
[360879265,1747095064176,-400.0,0.00019452,2]
[360879266,1747095064185,-400.0,0.00019452,2]
[360879267,1747095064195,-4587.81,0.00019452,2]
[360879268,1747095064204,-400.0,0.00019452,2]
[360879269,1747095064214,-400.0,0.00019452,2]
[360879270,1747095064224,-151.0,0.00019452,2]
[360879271,1747095064233,-151.0,0.00019452,2]
[360879272,1747095064243,-151.0,0.00019452,2]
[360879273,1747095064253,-400.0,0.00019452,2]
[360879274,1747095064262,-151.0,0.00019452,2]
[360879275,1747095064272,-647.27,0.00019452,2]
[360879276,1747095064281,-400.0,0.00019452,2]
[360879277,1747095064291,-255.80070693,0.00019452,2]
[360879278,1747095064300,-152.351664,0.00019452,2]
[360879279,1747095064310,-1441.16,0.00019452,2]
[360879280,1747095064319,-400.0,0.00019452,2]
[360879281,1747095064329,-19903.05,0.00019452,2]
[360879282,1747095064340,-2751.4,0.00019452,2]
[360879283,1747095064349,-400.0,0.00019452,2]
[360879284,1747095064359,-400.0,0.00019452,2]
[360879285,1747095064370,-400.0,0.00019452,2]
[360879286,1747095064380,-400.0,0.00019452,2]
[360879287,1747095064389,-400.0,0.00019452,2]
[360879288,1747095064399,-688.62,0.00019452,2]
[360879289,1747095064408,-1093.44,0.00019452,2]
[360879290,1747095064418,-415.79,0.00019452,2]
[360879291,1747095064428,-514.43,0.00019452,2]
[360879292,1747095064438,-508.74,0.00019452,2]
[360879293,1747095064447,-412.74,0.00019452,2]
[360879294,1747095064457,-4170.83,0.00019452,2]
[360879295,1747095064467,-400.0,0.00019452,2]
[360879296,1747095064477,-230.97073322,0.00019452,2]
[360879297,1747095064487,-400.0,0.00019452,2]
[360879298,1747095064497,-906.56,0.00019452,2]
[360879299,1747095064507,-2234.24,0.00019452,2]
[360879300,1747095064516,-400.0,0.00019452,2]
[360879301,1747095064526,-400.0,0.00019452,2]
[360879302,1747095064536,-259.47693284,0.00019452,2]
[360879303,1747095064546,-400.0,0.00019452,2]
[360879304,1747095064556,-436.04238441,0.00019452,2]
[360879305,1747095064566,-9596.31,0.00019452,2]
[360879306,1747095064575,-531.83,0.00019452,2]
[360879307,1747095064585,-400.0,0.00019452,2]
[360879308,1747095064594,-1372.7,0.00019452,2]
[360879309,1747095064604,-400.0,0.00019452,2]
[360879310,1747095064614,-400.0,0.00019452,2]
[360879311,1747095064626,-400.0,0.00019452,2]
[360879312,1747095064636,-400.0,0.00019452,2]
[360879313,1747095064645,-400.0,0.00019452,2]
[360879314,1747095064655,-400.0,0.00019452,2]
[360879315,1747095064665,-1686.75,0.00019452,2]
[360879316,1747095064674,-3432.89,0.00019452,2]
[360879317,1747095064683,-400.0,0.00019452,2]
[360879318,1747095064693,-400.0,0.00019452,2]
[360879319,1747095064702,-400.0,0.00019452,2]
[360879320,1747095064712,-400.0,0.00019452,2]
[360879321,1747095064722,-1641.38,0.00019452,2]
[360879322,1747095064731,-400.0,0.00019452,2]
[360879323,1747095064740,-400.0,0.00019452,2]
[360879324,1747095064750,-880.54,0.00019452,2]
[360879325,1747095064760,-400.0,0.00019452,2]
[360879326,1747095064769,-400.0,0.00019452,2]
[360879327,1747095064779,-696.76,0.00019452,2]
[360879328,1747095064788,-400.0,0.00019452,2]
[360879329,1747095064797,-1445.51,0.00019452,2]
[360879330,1747095064807,-3283.31,0.00019452,2]
[360879331,1747095064816,-896.38,0.00019452,2]
[360879332,1747095064825,-400.0,0.00019452,2]
[360879333,1747095064835,-400.0,0.00019452,2]
[360879334,1747095064844,-400.0,0.00019452,2]
[360879335,1747095064853,-400.0,0.00019452,2]
[360879336,1747095064862,-400.0,0.00019452,2]
[360879337,1747095064873,-1260.99,0.00019452,2]
[360879338,1747095064882,-514.25,0.00019452,2]
[360879339,1747095064891,-2705.43,0.00019452,2]
[360879340,1747095064901,-2463.3,0.00019452,2]
[360879341,1747095064910,-400.0,0.00019452,2]
[360879342,1747095064919,-1796.26,0.00019452,2]
[360879343,1747095064928,-500.0,0.00019452,2]
[360879344,1747095064938,-400.0,0.00019452,2]
[360879345,1747095064947,-400.0,0.00019452,2]
[360879346,1747095064956,-740.7,0.00019452,2]
[360879347,1747095064965,-400.0,0.00019452,2]
[360879348,1747095064974,-400.0,0.00019452,2]
[360879349,1747095064983,-400.0,0.00019452,2]
[360879350,1747095064993,-1074.96,0.00019452,2]
[360879351,1747095065002,-588.89,0.00019452,2]
[360879352,1747095065011,-400.0,0.00019452,2]
[360879353,1747095065020,-400.0,0.00019452,2]
[360879354,1747095065030,-621.87,0.00019452,2]
[360879355,1747095065039,-684.55,0.00019452,2]
[360879356,1747095065048,-5937.43,0.00019452,2]
[360879357,1747095065057,-400.0,0.00019452,2]
[360879358,1747095065067,-300.0,0.00019452,2]
[360879359,1747095065077,-426.94724411,0.00019452,2]
[360879360,1747095065086,-400.0,0.00019452,2]
[360879361,1747095065095,-400.0,0.00019452,2]
[360879362,1747095065104,-400.0,0.00019452,2]
[360879363,1747095065113,-400.0,0.00019452,2]
[360879364,1747095065124,-8567.6,0.00019452,2]
[360879365,1747095065133,-956.42,0.00019452,2]
[360879366,1747095065142,-151.0,0.00019452,2]
[360879367,1747095065152,-641.44,0.00019452,2]
[360879368,1747095065161,-400.0,0.00019452,2]
[360879369,1747095065174,-400.0,0.00019452,2]
[360879370,1747095065184,-400.0,0.00019452,2]
[360879371,1747095065193,-1942.99,0.00019452,2]
[360879372,1747095065202,-577.634342,0.00019452,2]
[360879373,1747095065212,-2548.36,0.00019452,2]
[360879374,1747095065221,-1275.76,0.00019452,2]
[360879375,1747095065230,-577.634342,0.00019452,2]
[360879376,1747095065239,-577.634342,0.00019452,2]
[360879377,1747095065251,-577.634342,0.00019452,2]
[360879378,1747095065260,-1540.25,0.00019452,2]
[360879379,1747095065269,-400.0,0.00019452,2]
[360879380,1747095065278,-577.634342,0.00019452,2]
[360879381,1747095065287,-577.634342,0.00019452,2]
[360879382,1747095065297,-577.634342,0.00019452,2]
[360879383,1747095065306,-577.634342,0.00019452,2]
[360879384,1747095065315,-553.72,0.00019452,2]
[360879385,1747095065324,-400.0,0.00019452,2]
[360879386,1747095065334,-1305.91,0.00019452,2]
[360879387,1747095065343,-400.0,0.00019452,2]
[360879388,1747095065352,-500.0,0.00019452,2]
[360879389,1747095065361,-400.0,0.00019452,2]
[360879390,1747095065372,-3687.82,0.00019452,2]
[360879391,1747095065381,-1318.19,0.00019452,2]
[360879392,1747095065390,-400.0,0.00019452,2]
[360879393,1747095065400,-400.0,0.00019452,2]
[360879394,1747095065409,-10569.91,0.00019452,2]
[360879395,1747095065418,-511.49,0.00019452,2]
[360879396,1747095065427,-498.52,0.00019452,2]
[360879397,1747095065436,-882.26,0.00019452,2]
[360879398,1747095065446,-665.77,0.00019452,2]
[360879399,1747095065455,-1750.235323,0.00019452,2]
[360879400,1747095065464,-1750.235323,0.00019452,2]
[360879401,1747095065474,-1750.235323,0.00019452,2]
[360879402,1747095065483,-400.0,0.00019452,2]
[360879403,1747095065492,-1275.38,0.00019452,2]
[360879404,1747095065502,-1750.235323,0.00019452,2]
[360879405,1747095065511,-400.0,0.00019452,2]
[360879406,1747095065520,-1750.235323,0.00019452,2]
[360879407,1747095065529,-508.29916605,0.00019452,2]
[360879408,1747095065539,-663.19,0.00019452,2]
[360879409,1747095065549,-1750.235323,0.00019452,2]
[360879410,1747095065558,-400.0,0.00019452,2]
[360879411,1747095065567,-1753.78,0.00019452,2]
[360879412,1747095065576,-1750.235323,0.00019452,2]
[360879413,1747095065586,-1750.235323,0.00019452,2]
[360879414,1747095065595,-498.65,0.00019452,2]
[360879415,1747095065605,-1750.235323,0.00019452,2]
[360879416,1747095065614,-4188.57,0.00019452,2]
[360879417,1747095065625,-1750.235323,0.00019452,2]
[360879418,1747095065635,-400.0,0.00019452,2]
[360879419,1747095065644,-205.16688442,0.00019452,2]
[360879420,1747095065653,-400.0,0.00019452,2]
[360879421,1747095065662,-452.89,0.00019452,2]
[360879422,1747095065671,-400.0,0.00019452,2]
[360879423,1747095065681,-578.81,0.00019452,2]
[360879424,1747095065690,-3328.62,0.00019452,2]
[360879425,1747095065699,-501.29641067,0.00019452,2]
[360879426,1747095065708,-400.0,0.00019452,2]
[360879427,1747095065718,-1420.97,0.00019452,2]
[360879428,1747095065727,-400.0,0.00019452,2]
[360879429,1747095065737,-7792.89,0.00019452,2]
[360879430,1747095065746,-400.0,0.00019452,2]
[360879431,1747095065755,-400.00752111,0.00019452,2]
[360879432,1747095065764,-595.54,0.00019452,2]
[360879433,1747095065773,-400.0,0.00019452,2]
[360879434,1747095065782,-400.0,0.00019452,2]
[360879435,1747095065791,-655.56,0.00019452,2]
[360879436,1747095065800,-8150.73,0.00019452,2]
[360879437,1747095065809,-422.67,0.00019452,2]
[360879438,1747095065819,-2937.13,0.00019452,2]
[360879439,1747095065829,-400.0,0.00019452,2]
[360879440,1747095065838,-717.14,0.00019452,2]
[360879441,1747095065848,-400.0,0.00019452,2]
[360879442,1747095065857,-400.0,0.00019452,2]
[360879443,1747095065868,-400.0,0.00019452,2]
[360879444,1747095065877,-400.0,0.00019452,2]
[360879445,1747095065886,-285.77963561,0.00019452,2]
[360879446,1747095065895,-750.52,0.00019452,2]
[360879447,1747095065905,-400.0,0.00019452,2]
[360879448,1747095065914,-2464.69,0.00019452,2]
[360879449,1747095065923,-400.0,0.00019452,2]
[360879450,1747095065932,-400.0,0.00019452,2]
[360879451,1747095065941,-517.97,0.00019452,2]
[360879452,1747095065950,-882.71,0.00019452,2]
[360879453,1747095065959,-400.0,0.00019452,2]
[360879454,1747095065968,-400.0,0.00019452,2]
[360879455,1747095065977,-1237.13,0.00019452,2]
[360879456,1747095065986,-1042.01,0.00019452,2]
[360879457,1747095065995,-400.0,0.00019452,2]
[360879458,1747095066004,-400.0,0.00019452,2]
[360879459,1747095066014,-2430.44,0.00019452,2]
[360879460,1747095066023,-16214.37,0.00019452,2]
[360879461,1747095066032,-400.0,0.00019452,2]
[360879462,1747095066041,-400.0,0.00019452,2]
[360879463,1747095066050,-400.0,0.00019452,2]
[360879464,1747095066060,-400.0,0.00019452,2]
[360879465,1747095066069,-7382.35,0.00019452,2]
[360879466,1747095066079,-400.0,0.00019452,2]
[360879467,1747095066088,-3450.92,0.00019452,2]
[360879468,1747095066097,-832.16,0.00019452,2]
[360879469,1747095066106,-413.06,0.00019452,2]
[360879470,1747095066268,-3193.57,0.00019452,2]
[360879471,1747095066277,-442.56,0.00019452,2]
[360879472,1747095066286,-400.0,0.00019452,2]
[360879473,1747095066295,-400.0,0.00019452,2]
[360879474,1747095066304,-701.06,0.00019452,2]
[360879475,1747095066314,-400.0,0.00019452,2]
[360879476,1747095066323,-151.0,0.00019452,2]
[360879477,1747095066332,-151.0,0.00019452,2]
[360879478,1747095066341,-386.15581482,0.00019452,2]
[360879479,1747095066350,-151.0,0.00019452,2]
[360879480,1747095066360,-467.17,0.00019452,2]
[360879481,1747095066371,-1144.6,0.00019452,2]
[360879482,1747095066380,-788.68,0.00019452,2]
[360879483,1747095066390,-457.16,0.00019452,2]
[360879484,1747095066399,-2014.14,0.00019452,2]
[360879485,1747095066409,-151.0,0.00019452,2]
[360879486,1747095066418,-1667.6,0.00019452,2]
[360879487,1747095066427,-151.0,0.00019452,2]
[360879488,1747095066436,-400.0,0.00019452,2]
[360879489,1747095066446,-151.0,0.00019452,2]
[360879490,1747095066455,-151.0,0.00019452,2]
[360879491,1747095066464,-588.67,0.00019452,2]
[360879492,1747095066474,-1012.27,0.00019452,2]
[360879493,1747095066483,-400.0,0.00019452,2]
[360879494,1747095066493,-494.94,0.00019452,2]
[360879495,1747095066502,-578.42,0.00019452,2]
[360879496,1747095066511,-2236.18,0.00019452,2]
[360879497,1747095066520,-400.0,0.00019452,2]
[360879498,1747095066529,-400.0,0.00019452,2]
[360879499,1747095066539,-3898.25,0.00019452,2]
[360879500,1747095066548,-25888.23,0.00019452,2]
[360879501,1747095066557,-605.52,0.00019452,2]
[360879502,1747095066566,-400.0,0.00019452,2]
[360879503,1747095066576,-815.55,0.00019452,2]
[360879504,1747095066585,-400.0,0.00019452,2]
[360879505,1747095066595,-580.88,0.00019452,2]
[360879506,1747095066604,-151.0,0.00019452,2]
[360879507,1747095066613,-1838.21,0.00019452,2]
[360879508,1747095066624,-151.0,0.00019452,2]
[360879509,1747095066633,-151.0,0.00019452,2]
[360879510,1747095066643,-400.0,0.00019452,2]
[360879511,1747095066652,-151.0,0.00019452,2]
[360879512,1747095066661,-400.0,0.00019452,2]
[360879513,1747095066671,-1704.39,0.00019452,2]
[360879514,1747095066680,-151.0,0.00019452,2]
[360879515,1747095066689,-400.0,0.00019452,2]
[360879516,1747095066699,-543.29,0.00019452,2]
[360879517,1747095066708,-400.0,0.00019452,2]
[360879518,1747095066717,-848.05,0.00019452,2]
[360879519,1747095066726,-400.0,0.00019452,2]
[360879520,1747095066736,-151.0,0.00019452,2]
[360879521,1747095066746,-151.0,0.00019452,2]
[360879522,1747095066755,-151.0,0.00019452,2]
[360879523,1747095066765,-151.0,0.00019452,2]
[360879524,1747095066774,-151.0,0.00019452,2]
[360879525,1747095066784,-400.0,0.00019452,2]
[360879526,1747095066793,-400.0,0.00019452,2]
[360879527,1747095066802,-5198.34,0.00019452,2]
[360879528,1747095066811,-2396.75,0.00019452,2]
[360879529,1747095066821,-360.69654212,0.00019452,2]
[360879530,1747095066830,-372.16920764,0.00019452,2]
[360879531,1747095066840,-400.0,0.00019452,2]
[360879532,1747095066849,-888.61,0.00019452,2]
[360879533,1747095066858,-151.0,0.00019452,2]
[360879534,1747095066869,-151.0,0.00019452,2]
[360879535,1747095066877,-151.0,0.00019452,2]
[360879536,1747095066886,-151.0,0.00019452,2]
[360879537,1747095066895,-151.0,0.00019452,2]
[360879538,1747095066905,-841.39,0.00019452,2]
[360879539,1747095066914,-1193.47,0.00019452,2]
[360879540,1747095066923,-151.0,0.00019452,2]
[360879541,1747095066932,-151.0,0.00019452,2]
[360879542,1747095066941,-653.0,0.00019452,2]
[360879543,1747095066951,-151.0,0.00019452,2]
[360879544,1747095066961,-753.43,0.00019452,2]
[360879545,1747095066970,-151.0,0.00019452,2]
[360879546,1747095066979,-400.0,0.00019452,2]
[360879547,1747095066988,-151.0,0.00019452,2]
[360879548,1747095066997,-151.0,0.00019452,2]
[360879549,1747095067007,-400.0,0.00019452,2]
[360879550,1747095067016,-151.0,0.00019452,2]
[360879551,1747095067026,-151.0,0.00019452,2]
[360879552,1747095067034,-151.0,0.00019452,2]
[360879553,1747095067044,-205.38265348,0.00019452,2]
[360879554,1747095067053,-151.0,0.00019452,2]
[360879555,1747095067062,-151.0,0.00019452,2]
[360879556,1747095067071,-211.701908,0.00019452,2]
[360879557,1747095067081,-1640.49,0.00019452,2]
[360879558,1747095067090,-400.0,0.00019452,2]
[360879559,1747095067099,-400.0,0.00019452,2]
[360879560,1747095067108,-400.0,0.00019452,2]
[360879561,1747095067119,-151.0,0.00019452,2]
[360879562,1747095067128,-151.0,0.00019452,2]
[360879563,1747095067137,-400.0,0.00019452,2]
[360879564,1747095067146,-151.0,0.00019452,2]
[360879565,1747095067155,-500.0,0.00019452,2]
[360879566,1747095067165,-293.941595,0.00019452,2]
[360879567,1747095067176,-425.78,0.00019452,2]
[360879568,1747095067185,-400.0,0.00019452,2]
[360879569,1747095067195,-400.0,0.00019452,2]
[360879570,1747095067204,-400.0,0.00019452,2]
[360879571,1747095067213,-1312.12,0.00019452,2]
[360879572,1747095067223,-820.47,0.00019452,2]
[360879573,1747095067232,-400.0,0.00019452,2]
[360879574,1747095067243,-730.03,0.00019452,2]
[360879575,1747095067252,-500.0,0.00019452,2]
[360879576,1747095067261,-508.95259486,0.00019452,2]
[360879577,1747095067270,-167.52423252,0.00019452,2]
[360879578,1747095067279,-471.55,0.00019452,2]
[360879579,1747095067289,-400.0,0.00019452,2]
[360879580,1747095067298,-400.0,0.00019452,2]
[360879581,1747095067308,-500.0,0.00019452,2]
[360879582,1747095067317,-924.56,0.00019452,2]
[360879583,1747095067326,-400.0,0.00019452,2]
[360879584,1747095067336,-500.0,0.00019452,2]
[360879585,1747095067345,-400.0,0.00019452,2]
[360879586,1747095067354,-400.0,0.00019452,2]
[360879587,1747095067364,-400.0,0.00019452,2]
[360879588,1747095067375,-446.25,0.00019452,2]
[360879589,1747095067384,-1258.78,0.00019452,2]
[360879590,1747095067393,-400.0,0.00019452,2]
[360879591,1747095067403,-1904.82,0.00019452,2]
[360879592,1747095067412,-151.0,0.00019452,2]
[360879593,1747095067421,-151.0,0.00019452,2]
[360879594,1747095067430,-151.0,0.00019452,2]
[360879595,1747095067440,-151.0,0.00019452,2]
[360879596,1747095067450,-5966.01,0.00019452,2]
[360879597,1747095067461,-400.0,0.00019452,2]
[360879598,1747095067471,-15657.12,0.00019452,2]
[360879599,1747095067481,-1518.02,0.00019452,2]
[360879600,1747095067490,-465.69,0.00019452,2]
[360879601,1747095067501,-151.0,0.00019452,2]
[360879602,1747095067511,-259.40955941,0.00019452,2]
[360879603,1747095067520,-151.0,0.00019452,2]
[360879604,1747095067530,-151.0,0.00019452,2]
[360879605,1747095067540,-400.0,0.00019452,2]
[360879606,1747095067549,-794.47,0.00019452,2]
[360879607,1747095067558,-151.0,0.00019452,2]
[360879608,1747095067568,-1555.94,0.00019452,2]
[360879609,1747095067577,-400.0,0.00019452,2]
[360879610,1747095067586,-400.0,0.00019452,2]
[360879611,1747095067597,-468.84,0.00019452,2]
[360879612,1747095067606,-1381.77,0.00019452,2]
[360879613,1747095067615,-400.0,0.00019452,2]
[360879614,1747095067626,-3297.06,0.00019452,2]
[360879615,1747095067635,-1613.0,0.00019462,2]
[360879616,1747095067645,-533.8527811,0.00019473,2]
[360879617,1747095067655,-500.0,0.00019473,2]
[360879618,1747095067664,-500.0,0.00019473,2]
[360879619,1747095067674,-152.12329621,0.00019473,2]
[360879620,1747095067683,-500.17705583,0.00019473,2]
[360879621,1747095067693,-500.0,0.00019473,2]
[360879622,1747095067702,-500.0,0.00019473,2]
[360879623,1747095067712,-500.14905997,0.00019473,2]
[360879624,1747095067721,-500.0,0.00019473,2]
[360879625,1747095067731,-500.0,0.00019473,2]
[360879626,1747095067740,-500.0,0.00019473,2]
[360879627,1747095067750,-304.3871869,0.00019473,2]
[360879628,1747095067759,-500.0,0.00019473,2]